Cogmind - Beta 12 @@@ ROGUE MODE // 2023.04.12 @ 14:27:41 // Winter2022/Polymind Player: Benkyo Result: Core destroyed Performance ------------- Evolutions (6) 3000 Regions Visited (24) 4800 Robots Destroyed (200) 1000 Value Destroyed (9436) 9436 Prototype IDs (248) 4960 Alien Tech Used (0) 0 Bonus (20900) 20900 TOTAL SCORE: 43766 Bonus ------- Polymind Skill 13917 High Alert Combat Kills 179 Follower Combat Kills 478 Network Hubs Disabled 200 Aligned with FarCom 300 Met Data Miner 300 Used Data Conduit 3000 Met Warlord at Base 500 MAIN.C Attacked Warlord 500 Warlord Defense Kills 1564 Met R17 at Cetus 500 Pursued by Intercept 1000 Friendly Fire -1538 Cogmind --------- Core Integrity 0/1150 Matter 70/250 Energy 260/260 System Corruption 1% Temperature Critical (576) Movement Immobile (Siege) Location -4/Hub_04(d) Parts ------- > --- POWER (1) -------- Reinforced Fission Core > --- PROPULSION (4) --- Heavy Treads Heavy Treads > --- UTILITY (8) ------ Advanced Cooling System Dynamic Insulation System > --- WEAPON (3) ------- Matter Neutralizer Railgun Hardcell Cannon > --- INVENTORY (1) ---- (None) Peak State ------------ > --- POWER ------------ Compact Particle Reactor Compact Particle Reactor > --- PROPULSION ------- Cooled Linear Gravjet Cooled Linear Gravjet Cooled Linear Gravjet > --- UTILITY ---------- Experimental Cooling System Quantum Shading Machine Experimental Target Analyzer Experimental Weapon Shielding Centrium Medium Armor Plating Experimental Focal Shield Advanced Dynamic Insulation System > --- WEAPON ----------- EMDS Experimental Remote Datajack > --- INVENTORY -------- (None) [Rating: 136] Favorites ----------- Power Light Fission Core Engine Improved Deuterium Engine Power Core Light Fission Core Reactor Compact Particle Reactor Propulsion Flexi-carbon Leg Treads Armored Medium Treads Leg Flexi-carbon Leg Hover Unit Combat Antigrav System Flight Unit Integrated Tracker Drive Utility EX Chip 1 Device Improved Heat Sink Storage YI-UF0's Bottomless Matter Pit Processor Targeting Computer Hackware EX Chip 1 Protection Improved Heavy Armor Plating Weapon Gauss Rifle Energy Gun AWS/EX-DEC Energy Cannon Matter Neutralizer Ballistic Gun Gauss Rifle Ballistic Cannon Heavy Mass Driver Launcher YI-UF0's Doublenader Special Weapon Experimental Remote Datajack Slashing Weapon Axe Build | -11 -10 -10 -9 -9 -9 -8 -8 -7 -7 -7 -7 -6 -6 -6 -6 -5 -5 -5 -4 -4 -4 -4 -4 -4 ------- Run | Jun Mat Min Mat Min Exi Min Mat Fac Low Low Dat Pro Fac Low Low Fac Upp War Pro Fac Ext Cet Arc Hub Slots Evolved . | . . . . . . . . . . . . . . . . . . . . . . . . . Power . | . . . . . . . . . . . . . . . . . . . . . . . . . Propulsion . | . . . . . . . . . . . . . . . . . . . . . . . . . Utility . | . . . . . . . . . . . . . . . . . . . . . . . . . Weapon . | . . . . . . . . . . . . . . . . . . . . . . . . . Parts Attached . | . . . . . . . . . . . . . . . . . . . . . . . . . Power . | . . . . . . . . . . . . . . . . . . . . . . . . . Engine . | . . . . . . . . . . . . . . . . . . . . . . . . . Core . | . . . . . . . . . . . . . . . . . . . . . . . . . Reactor . | . . . . . . . . . . . . . . . . . . . . . . . . . Propulsion . | . . . . . . . . . . . . . . . . . . . . . . . . . Treads . | . . . . . . . . . . . . . . . . . . . . . . . . . Leg . | . . . . . . . . . . . . . . . . . . . . . . . . . Wheel . | . . . . . . . . . . . . . . . . . . . . . . . . . Hover . | . . . . . . . . . . . . . . . . . . . . . . . . . Flight . | . . . . . . . . . . . . . . . . . . . . . . . . . Utility . | . . . . . . . . . . . . . . . . . . . . . . . . . Device . | . . . . . . . . . . . . . . . . . . . . . . . . . Storage . | . . . . . . . . . . . . . . . . . . . . . . . . . Processor . | . . . . . . . . . . . . . . . . . . . . . . . . . Hackware . | . . . . . . . . . . . . . . . . . . . . . . . . . Protection . | . . . . . . . . . . . . . . . . . . . . . . . . . Artifact . | . . . . . . . . . . . . . . . . . . . . . . . . . Weapon . | . . . . . . . . . . . . . . . . . . . . . . . . . Energy Gun . | . . . . . . . . . . . . . . . . . . . . . . . . . Energy Cannon . | . . . . . . . . . . . . . . . . . . . . . . . . . Ballistic Gun . | . . . . . . . . . . . . . . . . . . . . . . . . . Ballistic Cannon . | . . . . . . . . . . . . . . . . . . . . . . . . . Launcher . | . . . . . . . . . . . . . . . . . . . . . . . . . Special Weapon . | . . . . . . . . . . . . . . . . . . . . . . . . . Impact Weapon . | . . . . . . . . . . . . . . . . . . . . . . . . . Slashing Weapon . | . . . . . . . . . . . . . . . . . . . . . . . . . Piercing Weapon . | . . . . . . . . . . . . . . . . . . . . . . . . . Special Melee Weapon . | . . . . . . . . . . . . . . . . . . . . . . . . . Unidentified Prototypes . | . . . . . . . . . . . . . . . . . . . . . . . . . Parts Lost 40 | . . . 1 1 . . . 3 1 3 . . 9 2 2 3 . . . 1 . 4 5 5 Power 5 | . . . . . . . . . 1 1 . . 1 . . 1 . . . . . . 1 . Propulsion 9 | . . . . 1 . . . . . 2 . . 2 . . 1 . . . . . 1 . 2 Utility 16 | . . . 1 . . . . 3 . . . . 2 1 2 . . . . . . 2 2 3 Weapon 10 | . . . . . . . . . . . . . 4 1 . 1 . . . 1 . 1 2 . Highest Loss Streak 4 | . . . 1 1 . . . 1 1 2 . . 3 1 2 1 . . . 1 . 4 4 2 To Critical Strikes 2 | . . . . . . . . . . . . . 1 . . 1 . . . . . . . . Average Slot Usage (%) 86 | . . 98 84 90 99 96 96 92 97 81 57 88 90 93 80 71 88 88 88 84 80 82 80 77 Engine 3 | . . 12 10 22 14 3 3 3 11 9 . . 4 . . . . . . . . . . . Core 3 | . . . . . . . . . . . . 8 6 5 11 9 . . . 1 4 2 . 2 Reactor 1 | . . . . . . . . . . . . . . 6 . . . . . . . 5 11 6 Treads 5 | . . . . . . . . . . . . . 9 . . . . . . 6 14 13 16 15 Leg 10 | . . 23 21 9 28 . . . 22 14 . 16 13 11 22 21 . . . . . . . . Flight 1 | . . 2 . 27 . . . . . . . . . . . . 11 11 11 5 . . . . Device 17 | . . 23 16 9 28 . . . 11 14 14 11 13 18 2 . 33 33 33 37 42 34 23 22 Processor 10 | . . . . . 1 15 15 15 14 14 14 19 11 14 11 11 22 22 22 15 9 5 . . Hackware 8 | . . . . . 9 69 69 65 10 . . . . . . . . . . . . . . . Protection 4 | . . 11 12 . . . . . 11 14 14 3 4 3 . . . . . 1 4 7 11 8 Energy Gun 2 | . . . . 4 14 3 3 3 . . . . 4 . . . 11 11 11 5 . 5 6 6 Ballistic Gun 10 | . . 1 . 18 . . . . . . . 24 21 16 33 29 11 11 11 5 . 5 9 8 Slashing Weapon 1 | . . . . . . . . . 11 14 14 3 . . . . . . . . . . . . Naked Turns 35 | . 10 19 . . . . . . . . . . 1 . . . . . . . . 2 1 2 Heaviest Build 89 | . . 29 29 16 21 21 21 21 21 16 6 19 62 62 19 22 22 22 22 74 74 74 47 89 Greatest Support 140 | 3 3 30 30 30 30 21 21 21 30 30 3 40 62 62 40 40 22 22 22 81 81 81 80 140 Greatest Overweight (x) 5 | . . . 2 . . . . . . 5 1 1 . . . . . . . . . . . 1 Average Overweight (x) . | . . . . . . . . . . . 1 . . . . . . . . . . . . . Largest Inventory Capacity 1 | . . 1 1 1 1 1 1 1 1 1 1 1 1 1 1 1 . . . 1 1 1 1 1 Average Capacity . | . . . 1 . 1 1 1 1 1 1 1 1 . 1 1 . . . . . 1 . . . Most Carried 1 | . . . . . 1 1 1 1 1 . . . . . . . . . . . . . . . Average Carried . | . . . . . . 1 1 1 . . . . . . . . . . . . . . . . Final Capacity 1 | . . 1 1 1 1 1 1 1 1 1 1 1 1 1 1 . . . . 1 1 1 1 1 Final Carried 1 | . . . . . 1 1 1 1 . . . . . . . . . . . . . . . . Class Distribution -------------------- 27% | Hunter 13% | Sentry 13% | Heavy 12% | Tinkerer 10% | Duelist 8% | Grunt 7% | Swarmer 3% | Behemoth Dominant Class ---------------- Cogmind | -10/Materials Grunt | -10/Mines Grunt | -9/Materials Swarmer | -9/Mines Grunt | -9/Exiles Tinkerer | -8/Mines Tinkerer | -8/Materials Tinkerer | -7/Factory Duelist | -7/Lower Caves Duelist | -7/Lower Caves Duelist | -7/Data Miner Hunter | -6/Proximity Caves Hunter | -6/Factory Programmer | -6/Lower Caves Hunter | -6/Lower Caves Hunter | -5/Factory Swarmer | -5/Upper Caves Swarmer | -5/Warlord Swarmer | -4/Proximity Caves Swarmer | -4/Factory Heavy | -4/Extension Heavy | -4/Cetus Sentry | -4/Archives Sentry | -4/Hub_04(d) Resources | -11 -10 -10 -9 -9 -9 -8 -8 -7 -7 -7 -7 -6 -6 -6 -6 -5 -5 -5 -4 -4 -4 -4 -4 -4 ----------- Run | Jun Mat Min Mat Min Exi Min Mat Fac Low Low Dat Pro Fac Low Low Fac Upp War Pro Fac Ext Cet Arc Hub Matter Collected 3774 | . . 70 72 11 . . . . . . . . 579 477 143 358 170 530 20 155 539 367 82 201 Remotely . | . . . . . . . . . . . . . . . . . . . . . . . . . Salvage Created 8863 | . . 117 158 50 . 391 568 1082 360 694 . . 880 838 161 543 171 371 42 193 607 580 528 529 Parts 452 | . . 15 17 8 . 19 45 43 17 17 . 1 61 35 3 38 6 10 2 15 29 29 14 28 Haulers Intercepted . | . . . . . . . . . . . . . . . . . . . . . . . . . Recyclers Shooed 4 | . . 1 . . . . . . . . . . 1 . . 1 . . . . 1 . . . Parts Field Recycled . | . . . . . . . . . . . . . . . . . . . . . . . . . Retrieved Matter . | . . . . . . . . . . . . . . . . . . . . . . . . . Parts Self-Destructed 50 | . . . . . . . . . 13 12 . 1 . 16 6 . 2 . . . . . . . Prevented 21 | . . . . . . . . . 4 . . . . 17 . . . . . . . . . . Kills | -11 -10 -10 -9 -9 -9 -8 -8 -7 -7 -7 -7 -6 -6 -6 -6 -5 -5 -5 -4 -4 -4 -4 -4 -4 ------- Run | Jun Mat Min Mat Min Exi Min Mat Fac Low Low Dat Pro Fac Low Low Fac Upp War Pro Fac Ext Cet Arc Hub Combat Hostiles Destroyed 160 | . . 7 6 4 . 8 7 18 7 5 . 1 22 13 3 5 . 13 . 3 11 13 4 10 Melee 11 | . . . . . . . . . 5 5 . . . . . . . . . . . 1 . . Guns 100 | . . 1 . 4 . 7 7 13 1 . . 1 22 2 3 5 . 13 . 2 . 9 4 6 Cannons 27 | . . . . . . . . . . . . . . 9 . . . . . 1 11 2 . 4 AOE 12 | . . 6 6 . . . . . . . . . . . . . . . . . . . . . Classes Destroyed 21 | . . 3 5 . . 1 2 . . 1 . . 1 1 . 1 . 5 . . . . . 1 Worker 5 | . . . 2 . . . . . . . . . . . . 2 . . . . . . . 1 Builder 8 | . . 1 1 . . . 2 . . . . . 2 . . 1 . . . . 1 . . . Tunneler 1 | . . . . . . . . . . . . . . . . 1 . . . . . . . . Recycler 4 | . . . 1 . . . . . . . . . 1 . . 1 . . . . 1 . . . Operator 6 | . . . . . . . 1 . . . . . 2 . . . . . . 1 1 . 1 . Watcher 15 | . . . 1 . . . 4 2 . . . . . . . 2 . . . 1 2 2 . 1 Swarmer 34 | . . 5 . 4 . . . 4 3 . . . 11 3 . . . . . . . 4 . . Saboteur 1 | . . . . . . . . . . . . . . . . . . 1 . . . . . . Grunt 56 | . . 2 1 . . 5 2 11 3 4 . . 5 4 2 . . 6 . . 3 4 . 4 Brawler 6 | . . . . . . . 2 . . . . . . 1 1 . . 2 . . . . . . Duelist 5 | . . . 1 . . 1 1 1 . . . 1 . . . . . . . . . . . . Protector 1 | . . . . . . . . . . . . . . . . . . 1 . . . . . . Sentry 23 | . . . 4 . . . 1 1 1 1 . . 2 2 . . . . . . 7 . 3 1 Demolisher 1 | . . . . . . . . . . . . . . . . . . 1 . . . . . . Specialist 3 | . . . . . . . . . . . . . . . . . . 1 . . . . . 2 Hunter 10 | . . . . . . 2 1 1 . . . . 1 2 . 3 . . . . . . . . Programmer 8 | . . . . . . . . . . . . . 2 . . 2 . . . 2 . . . 2 Heavy 1 | . . . . . . . . . . . . . . . . . . . . . . . . 1 Cetus Guard 6 | . . . . . . . . . . . . . . . . . . . . . . 5 1 . Tracker 2 | . . . . . . . . . . . . . 1 . . . . . . 1 . . . . Combat Programmer 1 | . . . . . . . . . . . . . . 1 . . . . . . . . . . Executioner 1 | . . . . . . . . . . . . . . . . . . 1 . . . . . . Decomposer 5 | . . . . . . . . . . 3 . . . 2 . . . . . . . . . . Packrat 1 | . . . . . . . . . . 1 . . . . . . . . . . . . . . Samaritan 6 | . . . . . . . . . . . . . . 1 . . 4 . 1 . . . . . Tinkerer 3 | . . . . . . . . . . 1 . . . 2 . . . . . . . . . . Thug 1 | . . . . . . . . . . . . . . . . 1 . . . . . . . . Butcher 1 | . . . . . . . . . . . . . . . . . . . . . 1 . . . Best Kill Streak 8 | . . 6 4 3 . 3 6 6 3 3 . 1 6 8 3 5 . 6 . 4 3 8 3 3 Combat Bots Only 8 | . . 5 2 3 . 3 6 5 3 3 . 1 5 8 3 3 . 6 . 3 3 7 2 3 Max Kills in Single Turn 4 | . . 4 2 1 . 1 2 1 1 1 . 1 2 1 1 2 1 1 1 1 1 1 1 1 Gunslinging . | . . . . . . . . . . . . . . . . . . . . . . . . . Exploded 3 | . . 3 1 . . . . . . . . . . . . . . . . . . . . . Melee 1 | . . . . . . . . . 1 1 . . . . . . . . . . . 1 . . Uniques/NPCs Destroyed . | . . . . . . . . . . . . . . . . . . . . . . . . . Combat | -11 -10 -10 -9 -9 -9 -8 -8 -7 -7 -7 -7 -6 -6 -6 -6 -5 -5 -5 -4 -4 -4 -4 -4 -4 -------- Run | Jun Mat Min Mat Min Exi Min Mat Fac Low Low Dat Pro Fac Low Low Fac Upp War Pro Fac Ext Cet Arc Hub Damage Taken 12806 | . . 85 228 95 . 84 27 293 408 260 . . 1690 617 356 371 . 158 . 191 721 3243 644 3335 Core 2072 | . . 46 79 35 . 20 . 51 148 79 . . 298 36 38 67 . 22 . . 24 362 78 689 Absorbed by Shields 45 | . . . . . . . . . . . . . . . . . . . . . 45 . . . Reduced by Siege Mode 233 | . . . . . . . . . . . . . . . . . . . . . . 81 27 125 Redirected to Shielding 160 | . . . 8 . . . . . 17 17 . . . 118 . . . . . . . . . . Core Remaining (%) 79 | 100 . 81 . . . 66 100 . . . . 60 . . 56 . . . 91 . . . . . Volleys Fired 535 | . . 10 17 17 . . . . . . . 1 79 46 13 76 17 53 2 14 48 53 16 73 Largest 3 | . . 1 1 1 . . . . . . . 3 3 3 3 3 1 1 1 1 1 2 2 3 Hottest 275 | . . 70 70 75 . . . . . . . 79 108 79 79 79 30 30 30 75 75 275 129 205 Shots Fired 919 | . . 10 17 17 . 23 23 45 7 . . 3 167 71 39 134 17 53 2 14 48 77 27 125 Gun 718 | . . 5 . 17 . 23 23 45 7 . . 3 167 36 39 134 17 53 2 10 . 50 27 60 Cannon 179 | . . . . . . . . . . . . . . 35 . . . . . 4 48 27 . 65 Launcher 22 | . . 5 17 . . . . . . . . . . . . . . . . . . . . . Special . | . . . . . . . . . . . . . . . . . . . . . . . . . Kinetic 649 | . . 5 . 16 . . . . . . . 3 153 36 39 134 17 53 2 14 48 53 16 60 Thermal 115 | . . . . 1 . . . . . . . . 14 . . . . . . . . 24 11 65 Explosive 22 | . . 5 17 . . . . . . . . . . . . . . . . . . . . . Electromagnetic 133 | . . . . . . 23 23 45 7 . . . . 35 . . . . . . . . . . Robot Hit Streak 30 | . . 4 4 3 . 19 13 16 22 . . 24 30 15 4 15 23 24 27 21 10 13 20 11 Robot Miss Streak 4 | . . 4 2 2 . 2 4 2 . . . . 3 2 3 3 2 2 1 1 3 3 1 2 Penetration Max 1 | . . . . . . . . . . . . . 1 . 1 1 . . . . 1 1 . . Secondary Targets 5 | . . . . . . . . . . . . . 1 . 1 . . . . . . 1 . 2 Max Gunslinging Chain 1 | . . . . . . . . . . . . . 1 . 1 . . . . . . 1 . 1 Autonomous 99 | . . . . . . 23 23 45 8 . . . . . . . . . . . . . . . Shots Hit Robots 649 | . . 5 8 11 . 22 21 43 16 27 . 2 123 44 24 44 16 48 2 12 28 57 23 73 Core Hits 401 | . . 9 30 6 . 17 22 31 8 10 . 2 66 28 9 25 9 37 2 9 14 25 13 29 Critical Kills 5 | . . . . . . . . . . . . . 1 . . 1 . . . . . 2 1 . Critical Parts Destroyed 5 | . . . . . . . . . . . . . 3 . . . . 1 . . . 1 . . Critical Strikes 44 | . . . . . . 3 5 7 3 2 . . 4 4 . 1 . 1 . 1 3 7 1 2 Destroy 11 | . . . . . . . . . . . . . 4 . . 1 . 1 . . . 3 1 1 Blast 9 | . . . . . . . . . . . . . . . . . . . . 1 3 4 . 1 Corrupt 21 | . . . . . . 3 5 7 2 . . . . 4 . . . . . . . . . . Sever 3 | . . . . . . . . . 1 2 . . . . . . . . . . . . . . Melee Attacks 45 | . . . . . . . . . 15 29 1 . . . . . . . . . . . . . Impact . | . . . . . . . . . . . . . . . . . . . . . . . . . Slashing 45 | . . . . . . . . . 15 29 1 . . . . . . . . . . . . . Piercing . | . . . . . . . . . . . . . . . . . . . . . . . . . Sneak Attacks 8 | . . . . . . . . . 1 7 . . . . . . . . . . . . . . Combat Hostiles 2 | . . . . . . . . . 1 1 . . . . . . . . . . . . . . Follow-up Attacks . | . . . . . . . . . . . . . . . . . . . . . . . . . Damage Inflicted 24474 | . . 480 764 108 . 633 587 1346 649 1593 . 34 2781 1687 518 879 676 2007 69 564 2576 3144 677 2702 Guns 14049 | . . 11 . 108 . 633 587 1297 240 . . 34 2777 482 518 879 676 2007 69 410 . 1262 677 1382 Cannons 6917 | . . . . . . . . . . . . . . 1205 . . . . . 154 2576 1860 . 1122 Explosions 1477 | . . 466 764 . . . . 49 . . . . . . . . . . . . . . . 198 Melee 2002 | . . . . . . . . . 409 1593 . . . . . . . . . . . . . . Ramming 29 | . . 3 . . . . . . . . . . 4 . . . . . . . . 22 . . Kinetic 14874 | . . 11 . 86 . . . . . . . 34 2457 482 518 879 676 2007 69 564 2576 2426 391 1698 Thermal 2179 | . . . . 22 . . . 49 . . . . 320 . . . . . . . . 696 286 806 Explosive 1230 | . . 466 764 . . . . . . . . . . . . . . . . . . . . . Electromagnetic 4160 | . . . . . . 633 587 1297 240 . . . . 1205 . . . . . . . . . 198 Impact . | . . . . . . . . . . . . . . . . . . . . . . . . . Slashing 2002 | . . . . . . . . . 409 1593 . . . . . . . . . . . . . . Piercing . | . . . . . . . . . . . . . . . . . . . . . . . . . Highest Corruption 3 | . . . . . . . . . . . . . 2 2 3 . . . . . . . . 1 Average Corruption 2 | . . . . . . . . . . . . . 1 2 2 . . . . . . . . 1 Corruption Purged . | . . . . . . . . . . . . . . . . . . . . . . . . . Corruption Blocked . | . . . . . . . . . . . . . . . . . . . . . . . . . Effects 15 | . . . . . . . . . . . . . . 13 2 . . . . . . . . . Message Errors 5 | . . . . . . . . . . . . . . 4 1 . . . . . . . . . Matter Fused 3 | . . . . . . . . . . . . . . 2 1 . . . . . . . . . Heat Flow Errors 2 | . . . . . . . . . . . . . . 2 . . . . . . . . . . Energy Discharges 2 | . . . . . . . . . . . . . . 2 . . . . . . . . . . Misfires 2 | . . . . . . . . . . . . . . 2 . . . . . . . . . . Weapon Failures 1 | . . . . . . . . . . . . . . 1 . . . . . . . . . . Overload Shots 1 | . . . . . . . . . . . . . . . . . . . . . . 1 . . Overflow Damage 949 | . . 13 . . . . . . 44 462 . . . 117 . . . . . 21 181 87 . 24 Projectiles 428 | . . . . . . . . . . . . . . 117 . . . . . 21 181 87 . 22 Explosions 15 | . . 13 . . . . . . . . . . . . . . . . . . . . . 2 Melee 506 | . . . . . . . . . 44 462 . . . . . . . . . . . . . . Knockbacks 11 | . . . . . . . . . . . . . . . . . . . . 1 6 1 . 3 Impact . | . . . . . . . . . . . . . . . . . . . . . . . . . Kinetic 10 | . . . . . . . . . . . . . . . . . . . . 1 5 1 . 3 Secondary 1 | . . . . . . . . . . . . . . . . . . . . . 1 . . . Self-Inflicted Damage 137 | . . 27 15 . . . . 20 . . . . . . . . . . . . . . . 75 Shots 11 | . . 4 5 . . . . 1 . . . . . . . . . . . . . . . 1 Rammed 1 | . . 1 . . . . . . . . . . . . . . . . . . . . . . Targets Rammed 3 | . . 1 . . . . . . . . . . 1 . . . . . . . . 1 . . Kicked 1 | . . . . . . . . . . . . . 1 . . . . . . . . . . . Crushed 1 | . . . . . . . . . . . . . . . . . . . . . . 1 . . Highest Temperature 576 | . . 20 17 18 . 5 2 3 29 11 . 3 38 137 62 . . . . . . 171 61 576 Average Temperature 68 | . . 11 12 9 . 3 2 2 16 3 . 2 12 15 30 . . . . . . 108 35 159 Received Heat Transfer 1830 | . . 6 72 . . 27 18 93 132 135 . . 237 81 153 . . 18 . . 131 328 90 309 Effects 8 | . . . . . . . . . . . . . . . . . . . . . . . . 8 Shutdowns 1 | . . . . . . . . . . . . . . . . . . . . . . . . 1 Interference 3 | . . . . . . . . . . . . . . . . . . . . . . . . 3 Matter Decay 1 | . . . . . . . . . . . . . . . . . . . . . . . . 1 Short Circuit 1 | . . . . . . . . . . . . . . . . . . . . . . . . 1 Damage (core) 2 | . . . . . . . . . . . . . . . . . . . . . . . . 2 Siege Activations 5 | . . . . . . . . . . . . . . . . . . . . . . 1 3 1 Total Turns 104 | . . . . . . . . . . . . . . . . . . . . . . 31 25 48 Longest Duration 48 | . . . . . . . . . . . . . . . . . . . . . . 31 15 48 Robots Corrupted 9 | . . . . . . 1 . 5 1 . . . . 2 . . . . . . . . . . Combat Hostiles 9 | . . . . . . 1 . 5 1 . . . . 2 . . . . . . . . . . Parts Fried 31 | . . . . . . 5 5 12 1 . . . . 8 . . . . . . . . . . Impact Corruptions 1 | . . . . . . . . . . . . . . . . . . . . . 1 . . . Robots Melted 1 | . . . . . . . . . . . . . . . . . . . . . . 1 . . Combat Hostiles 1 | . . . . . . . . . . . . . . . . . . . . . . 1 . . Parts Melted 1 | . . . . . . . . . . . . . . 1 . . . . . . . . . . Heat Transferred 2649 | . . . . 37 . . . 50 . . . . 625 . . . . . . . . 753 333 851 Parts Sabotaged . | . . . . . . . . . . . . . . . . . . . . . . . . . Parts Stolen . | . . . . . . . . . . . . . . . . . . . . . . . . . Parts Stripped . | . . . . . . . . . . . . . . . . . . . . . . . . . Power Chain Reactions 1 | . . . . . . . . 1 . . . . . . . . . . . . . . . . Missiles Intercepted . | . . . . . . . . . . . . . . . . . . . . . . . . . Alert | -11 -10 -10 -9 -9 -9 -8 -8 -7 -7 -7 -7 -6 -6 -6 -6 -5 -5 -5 -4 -4 -4 -4 -4 -4 ------- Run | Jun Mat Min Mat Min Exi Min Mat Fac Low Low Dat Pro Fac Low Low Fac Upp War Pro Fac Ext Cet Arc Hub Peak Influence 546 | . . 210 386 242 . 230 309 542 . . . . 270 . . 160 . . . 189 390 341 226 546 Initial 155 | . . . 3 150 . . 11 140 . . . . 12 . . 110 . . . . 92 155 136 79 Average 141 | . . 112 232 197 . 175 182 316 . . . . 87 . . 60 . . . 116 212 162 185 103 Maximum Alert Level 2 | . . 1 1 1 . 1 1 2 . . . . 1 . . . . . . . 1 1 1 2 Low Security (%) 72 | 100 100 53 49 37 . 49 29 33 . . . . 93 . . 100 . . . 100 48 67 69 91 Level 1 24 | . . 46 50 62 . 50 70 31 . . . . 6 . . . . . . . 51 32 30 . Level 2 3 | . . . . . . . . 34 . . . . . . . . . . . . . . . 8 Level 3 . | . . . . . . . . . . . . . . . . . . . . . . . . . Level 4 . | . . . . . . . . . . . . . . . . . . . . . . . . . Level 5 . | . . . . . . . . . . . . . . . . . . . . . . . . . High Security . | . . . . . . . . . . . . . . . . . . . . . . . . . Max Security . | . . . . . . . . . . . . . . . . . . . . . . . . . Squads Dispatched 27 | . . . 1 . . . 1 5 . . . . 7 . . 6 . . . 1 . . . 6 Investigation 3 | . . . . . . . . . . . . . 1 . . 1 . . . 1 . . . . Extermination 6 | . . . . . . . . . . . . . 2 . . 1 . . . . . . . 3 Reinforcement 10 | . . . 1 . . . . 2 . . . . 2 . . 2 . . . . . . . 3 Assault . | . . . . . . . . . . . . . . . . . . . . . . . . . Garrison 4 | . . . . . . . 1 3 . . . . . . . . . . . . . . . . Intercept 4 | . . . . . . . . . . . . . 2 . . 2 . . . . . . . . Searches Triggered . | . . . . . . . . . . . . . . . . . . . . . . . . . Construction Impeded 1 | . . . . . . . . . . . . . . . . 1 . . . . . . . . Haulers Reinforced 2 | . . . . . . . . 1 . . . . 1 . . . . . . . . . . . Active Scanning Responses . | . . . . . . . . . . . . . . . . . . . . . . . . . Cargo Convoy Interrupts . | . . . . . . . . . . . . . . . . . . . . . . . . . Stealth | -11 -10 -10 -9 -9 -9 -8 -8 -7 -7 -7 -7 -6 -6 -6 -6 -5 -5 -5 -4 -4 -4 -4 -4 -4 --------- Run | Jun Mat Min Mat Min Exi Min Mat Fac Low Low Dat Pro Fac Low Low Fac Upp War Pro Fac Ext Cet Arc Hub Distress Signals 14 | . . . 1 . . . . 1 . . . . 1 . . 1 . . . 2 3 2 . 3 Communications Jammed 41 | . . . . . . . . . . . . . . . . . . . . . 41 . . . Distress Signals 41 | . . . . . . . . . . . . . . . . . . . . . 41 . . . Times Spotted 259 | . . 11 9 4 . 8 13 23 14 5 . . 22 17 3 9 . 43 . 8 16 31 5 18 Peak Tracking Total 13 | . . 3 3 3 . 3 5 4 4 4 . . 4 5 3 2 . 13 . 4 6 9 2 5 Tactical Retreats 15 | . . . . . . . . 2 3 . . . . 4 . 1 . 2 . 1 1 1 . . Traps | -11 -10 -10 -9 -9 -9 -8 -8 -7 -7 -7 -7 -6 -6 -6 -6 -5 -5 -5 -4 -4 -4 -4 -4 -4 ------- Run | Jun Mat Min Mat Min Exi Min Mat Fac Low Low Dat Pro Fac Low Low Fac Upp War Pro Fac Ext Cet Arc Hub Traps Triggered 6 | . . . 2 . . . . 1 . . . . 1 . . 2 . . . . . . . . Indirectly . | . . . . . . . . . . . . . . . . . . . . . . . . . Trap Hack Attempts . | . . . . . . . . . . . . . . . . . . . . . . . . . Triggered . | . . . . . . . . . . . . . . . . . . . . . . . . . Disarmed 1 | . . . . . . . 1 . . . . . . . . . . . . . . . . . Reprogrammed . | . . . . . . . . . . . . . . . . . . . . . . . . . Reused . | . . . . . . . . . . . . . . . . . . . . . . . . . Traps Extracted . | . . . . . . . . . . . . . . . . . . . . . . . . . Installed . | . . . . . . . . . . . . . . . . . . . . . . . . . Triggered 6 | . . . . . . . . . . . . . . . . . . 6 . . . . . . Machines | -11 -10 -10 -9 -9 -9 -8 -8 -7 -7 -7 -7 -6 -6 -6 -6 -5 -5 -5 -4 -4 -4 -4 -4 -4 ---------- Run | Jun Mat Min Mat Min Exi Min Mat Fac Low Low Dat Pro Fac Low Low Fac Upp War Pro Fac Ext Cet Arc Hub Machines Disabled 30 | . . . 1 . . . 1 1 . . . . 2 3 . . . . . . 1 . 2 19 Max in Single Turn 12 | . . . 1 . . . 1 1 . . . . 1 1 . . . . . . . . 1 12 Garrison Access 2 | . . . . . . . 1 1 . . . . . . . . . . . . . . . . Network Hub 1 | . . . . . . . . . . . . . . . . . . . . . . . . 1 Machines Repaired . | . . . . . . . . . . . . . . . . . . . . . . . . . Machines Sabotaged . | . . . . . . . . . . . . . . . . . . . . . . . . . Overloaded Fab Kills . | . . . . . . . . . . . . . . . . . . . . . . . . . Hacking | -11 -10 -10 -9 -9 -9 -8 -8 -7 -7 -7 -7 -6 -6 -6 -6 -5 -5 -5 -4 -4 -4 -4 -4 -4 --------- Run | Jun Mat Min Mat Min Exi Min Mat Fac Low Low Dat Pro Fac Low Low Fac Upp War Pro Fac Ext Cet Arc Hub Machines Accessed 57 | . . . 3 1 1 . 6 9 . . 3 . 5 2 . 7 1 . . 4 11 1 . 3 Terminals 45 | . . . 3 1 . . 5 7 . . . . 3 . . 7 . . . 4 11 1 . 3 Fabricators 1 | . . . . . . . . 1 . . . . . . . . . . . . . . . . Repair Stations . | . . . . . . . . . . . . . . . . . . . . . . . . . Recycling Units 2 | . . . . . . . . . . . . . 2 . . . . . . . . . . . Scanalyzers . | . . . . . . . . . . . . . . . . . . . . . . . . . Garrison Access 2 | . . . . . . . 1 1 . . . . . . . . . . . . . . . . Total Hacks 166 | . . . 11 3 1 . 23 34 . . 23 . 10 2 . 15 1 . . 12 27 1 . 3 Successful 113 | . . . 5 . 1 . 22 30 . . 23 . 4 2 . 4 1 . . 6 14 1 . . Failed 52 | . . . 6 3 . . . 4 . . . . 6 . . 11 . . . 6 13 . . 3 Catastrophic 16 | . . . 2 . . . . . . . . . 2 . . 5 . . . 1 3 . . 3 Database Lockouts 1 | . . . . . . . 1 . . . . . . . . . . . . . . . . . Manual 74 | . . . 10 . 1 . 13 24 . . . . 4 . . 7 . 1 . 1 12 . . 1 Terminals 133 | . . . 11 3 . . 22 32 . . . . 7 . . 15 . . . 12 27 1 . 3 Fabricators 1 | . . . . . . . . 1 . . . . . . . . . . . . . . . . Repair Stations . | . . . . . . . . . . . . . . . . . . . . . . . . . Recycling Units 3 | . . . . . . . . . . . . . 3 . . . . . . . . . . . Scanalyzers . | . . . . . . . . . . . . . . . . . . . . . . . . . Garrison Access 2 | . . . . . . . 1 1 . . . . . . . . . . . . . . . . Terminal Hacks 89 | . . . 3 . 1 . 15 23 . . 23 . 2 2 . 2 1 . . 6 10 1 . . Record 9 | . . . . . . . 1 2 . . 6 . . . . . . . . . . . . . Part Schematic 9 | . . . . . . . . . . . 9 . . . . . . . . . . . . . Robot Schematic 5 | . . . . . . . . . . . 5 . . . . . . . . . . . . . Robot Analysis 17 | . . . 2 . . . 2 13 . . . . . . . . . . . . . . . . Prototype ID Bank 6 | . . . . . . . 3 . . . 3 . . . . . . . . . . . . . Open Door 8 | . . . . . . . . . . . . . . 2 . . 1 . . . 4 1 . . Open DSF 1 | . . . . . . . . 1 . . . . . . . . . . . . . . . . Level Access Points 3 | . . . . . . . 1 1 . . . . 1 . . . . . . . . . . . Branch Access Points 4 | . . . . . . . 1 1 . . . . . . . 1 . . . 1 . . . . Emergency Access Points 2 | . . . . . . . . 1 . . . . . . . . . . . 1 . . . . Machine Index 1 | . . . . . . . . 1 . . . . . . . . . . . . . . . . Locate Traps 11 | . . . . . . . 2 2 . . . . 1 . . . . . . 3 3 . . . Disarm Traps 1 | . . . . . . . 1 . . . . . . . . . . . . . . . . . Registered Components 1 | . . . . . . . 1 . . . . . . . . . . . . . . . . . Zone Layout 10 | . . . 1 . . . 3 1 . . . . . . . 1 . . . 1 3 . . . EX-Prototype ID Bank 1 | . . . . . 1 . . . . . . . . . . . . . . . . . . . Fabricator Hacks 1 | . . . . . . . . 1 . . . . . . . . . . . . . . . . Network Status 1 | . . . . . . . . 1 . . . . . . . . . . . . . . . . Repair Station Hacks . | . . . . . . . . . . . . . . . . . . . . . . . . . Recycling Unit Hacks 2 | . . . . . . . . . . . . . 2 . . . . . . . . . . . Retrieve Matter 2 | . . . . . . . . . . . . . 2 . . . . . . . . . . . Scanalyzer . | . . . . . . . . . . . . . . . . . . . . . . . . . Garrison Access Hacks 2 | . . . . . . . 1 1 . . . . . . . . . . . . . . . . Seal Access 2 | . . . . . . . 1 1 . . . . . . . . . . . . . . . . Unauthorized Hacks 19 | . . . 2 . . . 6 5 . . . . . . . 2 . . . . 4 . . . Terminals 19 | . . . 2 . . . 6 5 . . . . . . . 2 . . . . 4 . . . Track 1 | . . . . . . . 1 . . . . . . . . . . . . . . . . . Assimilate 5 | . . . . . . . 2 1 . . . . . . . 1 . . . . 1 . . . Botnet 8 | . . . 2 . . . 1 2 . . . . . . . 1 . . . . 2 . . . Disrupt 2 | . . . . . . . 1 1 . . . . . . . . . . . . . . . . Operators 3 | . . . . . . . 1 1 . . . . . . . . . . . . 1 . . . Fabricators . | . . . . . . . . . . . . . . . . . . . . . . . . . Repair Stations . | . . . . . . . . . . . . . . . . . . . . . . . . . Recycling Units . | . . . . . . . . . . . . . . . . . . . . . . . . . Scanalyzers . | . . . . . . . . . . . . . . . . . . . . . . . . . Garrison Access . | . . . . . . . . . . . . . . . . . . . . . . . . . Data Cores Recovered 3 | . . . . . . . 1 . . . . . . . . . . . . 1 1 . . . Used 1 | . . . . . . . . . . . . . . . . . . . . . 1 . . . Hacking Detections 38 | . . . 3 1 . . 2 5 . . . . 4 . . 7 . . . 4 9 . . 3 Full Trace Events 2 | . . . . . . . . . . . . . . . . 1 . . . 1 . . . . Feedback Events . | . . . . . . . . . . . . . . . . . . . . . . . . . Feedback Blocked . | . . . . . . . . . . . . . . . . . . . . . . . . . Robot Schematics Acquired 5 | . . . . . . . . . . . 5 . . . . . . . . . . . . . Robots Built . | . . . . . . . . . . . . . . . . . . . . . . . . . Authchips . | . . . . . . . . . . . . . . . . . . . . . . . . . Time . | . . . . . . . . . . . . . . . . . . . . . . . . . Total Robot Build Rating . | . . . . . . . . . . . . . . . . . . . . . . . . . Part Schematics Acquired 9 | . . . . . . . . . . . 9 . . . . . . . . . . . . . Parts Built . | . . . . . . . . . . . . . . . . . . . . . . . . . Authchips . | . . . . . . . . . . . . . . . . . . . . . . . . . Time . | . . . . . . . . . . . . . . . . . . . . . . . . . Total Part Build Rating . | . . . . . . . . . . . . . . . . . . . . . . . . . Parts Repaired . | . . . . . . . . . . . . . . . . . . . . . . . . . Time . | . . . . . . . . . . . . . . . . . . . . . . . . . Parts Recycled . | . . . . . . . . . . . . . . . . . . . . . . . . . Recycled Matter . | . . . . . . . . . . . . . . . . . . . . . . . . . Retrieved Matter 72 | . . . . . . . . . . . . . 72 . . . . . . . . . . . Retrieved Components . | . . . . . . . . . . . . . . . . . . . . . . . . . Parts Scanalyzed . | . . . . . . . . . . . . . . . . . . . . . . . . . Part Schematics Acquired . | . . . . . . . . . . . . . . . . . . . . . . . . . Parts Damaged . | . . . . . . . . . . . . . . . . . . . . . . . . . Bothacking | -11 -10 -10 -9 -9 -9 -8 -8 -7 -7 -7 -7 -6 -6 -6 -6 -5 -5 -5 -4 -4 -4 -4 -4 -4 ------------ Run | Jun Mat Min Mat Min Exi Min Mat Fac Low Low Dat Pro Fac Low Low Fac Upp War Pro Fac Ext Cet Arc Hub Used RIF Installer . | . . . . . . . . . . . . . . . . . . . . . . . . . Robots Hacked 10 | . . 1 . 1 . . . . 1 . . 1 1 1 . . . . . 1 . 1 1 1 Non-combat . | . . . . . . . . . . . . . . . . . . . . . . . . . Combat 10 | . . 1 . 1 . . . . 1 . . 1 1 1 . . . . . 1 . 1 1 1 Robot Hacks Applied 12 | . . 1 . 1 . . . . 1 . . 1 2 1 . . . . . 2 . 1 1 1 find_shortcuts 10 | . . 1 . 1 . . . . 1 . . 1 1 1 . . . . . 1 . 1 1 1 find_garrison 2 | . . . . . . . . . . . . . 1 . . . . . . 1 . . . . Relay Couplers Released . | . . . . . . . . . . . . . . . . . . . . . . . . . Fabnet Peak Effective % . | . . . . . . . . . . . . . . . . . . . . . . . . . Robots Rewired 15 | . . . . . . . . . . . . . . 2 . . . . . . 13 . . . Allies Hacked . | . . . . . . . . . . . . . . . . . . . . . . . . . Hacks Repelled . | . . . . . . . . . . . . . . . . . . . . . . . . . Allies | -11 -10 -10 -9 -9 -9 -8 -8 -7 -7 -7 -7 -6 -6 -6 -6 -5 -5 -5 -4 -4 -4 -4 -4 -4 -------- Run | Jun Mat Min Mat Min Exi Min Mat Fac Low Low Dat Pro Fac Low Low Fac Upp War Pro Fac Ext Cet Arc Hub Total Allies 25 | . . . . . . . . . . . . . . 2 . 3 . . . . 20 . . . Largest Group 10 | . . . . . . . . . . . . . . 2 . 3 . . . . 10 10 . . Highest-Rated Group 420 | . . . . . . . . . . . . . . 58 . 93 . . . . 420 420 . . Highest-Rated Ally 46 | . . . . . . . . . . . . . . 29 . 31 . . . . 46 46 . . Total Orders . | . . . . . . . . . . . . . . . . . . . . . . . . . Ally Attacks 105 | . . . . . . . . . . . . . . 23 . 16 . . . . 41 25 . . Total Damage 2372 | . . . . . . . . . . . . . . 251 . 218 . . . . 1303 600 . . Kills 10 | . . . . . . . . . . . . . . 3 . . . . . . 5 2 . . Allies Corrupted 1 | . . . . . . . . . . . . . . . . 1 . . . . . . . . Allies Melted . | . . . . . . . . . . . . . . . . . . . . . . . . . Intel | -11 -10 -10 -9 -9 -9 -8 -8 -7 -7 -7 -7 -6 -6 -6 -6 -5 -5 -5 -4 -4 -4 -4 -4 -4 ------- Run | Jun Mat Min Mat Min Exi Min Mat Fac Low Low Dat Pro Fac Low Low Fac Upp War Pro Fac Ext Cet Arc Hub Robot Analysis Total 150 | . . 1 2 1 . . 2 13 . . 131 . . . . . . . . . . . . . Derelict Logs Recovered 11 | . . 1 . 1 . . . . 2 1 . 1 . 3 . . 1 . 1 . . . . . Drone Launches . | . . . . . . . . . . . . . . . . . . . . . . . . . Drone Recoveries . | . . . . . . . . . . . . . . . . . . . . . . . . . Exploration | -11 -10 -10 -9 -9 -9 -8 -8 -7 -7 -7 -7 -6 -6 -6 -6 -5 -5 -5 -4 -4 -4 -4 -4 -4 ------------- Run | Jun Mat Min Mat Min Exi Min Mat Fac Low Low Dat Pro Fac Low Low Fac Upp War Pro Fac Ext Cet Arc Hub Turns Passed 12028 | 9 10 529 308 217 234 413 305 604 651 569 90 304 2089 663 128 1382 85 441 49 158 1323 379 150 938 Spaces Moved 10200 | 18 20 462 220 374 209 473 345 636 568 392 88 265 1295 936 71 815 434 809 313 366 620 143 50 278 Core 434 | 18 20 28 30 . . . . . . 157 88 81 1 1 . . . . . 1 . 2 2 5 Treads 1514 | . . . . . . . . . . . . . 397 . . . . . . 36 620 140 48 273 Legs 3598 | . . 395 190 42 167 . . . 410 235 . 184 858 241 71 805 . . . . . . . . Wheels . | . . . . . . . . . . . . . . . . . . . . . . . . . Hover 2387 | . . . . . 42 473 345 636 158 . . . 39 694 . . . . . . . . . . Flight 2267 | . . 39 . 332 . . . . . . . . . . . 10 434 809 313 329 . 1 . . Fastest Speed 15 | 50 50 37 120 37 80 80 80 80 80 100 100 100 32 32 120 15 15 15 15 15 170 32 50 50 Average Speed 91 | 50 50 108 124 47 111 80 80 80 108 126 100 113 129 54 120 118 15 15 15 30 170 164 155 178 Slowest Speed 300 | 50 50 120 150 120 120 80 80 80 120 300 100 120 160 120 120 120 15 15 15 170 170 170 160 240 Overloaded Moves . | . . . . . . . . . . . . . . . . . . . . . . . . . Propulsion Burnouts . | . . . . . . . . . . . . . . . . . . . . . . . . . Robots Hopped 5 | . . . . 4 . . . . . . . . . . . . . . . 1 . . . . Cave-ins Triggered . | . . . . . . . . . . . . . . . . . . . . . . . . . Exploration Rate (%) 53 | 3 9 97 30 81 63 90 36 22 83 63 76 60 13 95 17 17 68 86 61 16 68 80 65 33 Regions Visited 24 Branch Regions 17 Pre-discovered Areas 29 | . . 2 . 1 . . . . 1 . 24 1 . . . . . . . . . . . . Known Exits Taken 7 | . . . . . . . 1 1 . . . 1 . 1 1 1 . . . 1 . . . . Unknown Exits Taken 17 | 1 1 1 1 1 1 1 . . 1 1 1 . 1 . . . 1 1 1 . 1 1 1 . Scrap Searched 16 | . . 1 . . . 1 . . 2 2 . . . 3 . . 4 . 3 . . . . . Spaces Dug 39 | . . . . . . . . . 3 1 1 . . . . 8 . . . 1 15 . . 10 Terrain Destroyed 470 | . . 56 126 . . . . 3 3 1 1 . 2 6 1 10 . . . 2 21 26 7 205 Melee 5 | . . . . . . . . . 3 1 1 . . . . . . . . . . . . . Projectile 91 | . . . . . . . . . . . . . 1 5 1 3 . . . 2 21 26 7 25 AOE 365 | . . 56 126 . . . . 3 . . . . . . . . . . . . . . . 180 Terrain Rammed . | . . . . . . . . . . . . . . . . . . . . . . . . . Walls Destroyed . | . . . . . . . . . . . . . . . . . . . . . . . . . Machines Disabled . | . . . . . . . . . . . . . . . . . . . . . . . . . Actions | -11 -10 -10 -9 -9 -9 -8 -8 -7 -7 -7 -7 -6 -6 -6 -6 -5 -5 -5 -4 -4 -4 -4 -4 -4 --------- Run | Jun Mat Min Mat Min Exi Min Mat Fac Low Low Dat Pro Fac Low Low Fac Upp War Pro Fac Ext Cet Arc Hub Total 12152 | 17 19 479 238 394 208 507 373 730 582 429 88 265 1552 1026 84 1104 453 1127 314 408 841 210 95 609 Wait 1217 | . . 7 2 8 . 35 29 95 . 9 . . 178 26 1 211 3 266 . 30 15 14 30 258 Move 10166 | 17 19 461 219 365 208 472 344 635 567 391 87 264 1294 935 70 814 433 808 312 363 619 142 49 278 Hop 5 | . . . . 4 . . . . . . . . . . . . . . . 1 . . . . Pick Up . | . . . . . . . . . . . . . . . . . . . . . . . . . Fast Attach . | . . . . . . . . . . . . . . . . . . . . . . . . . Attach . | . . . . . . . . . . . . . . . . . . . . . . . . . Detach . | . . . . . . . . . . . . . . . . . . . . . . . . . Swap . | . . . . . . . . . . . . . . . . . . . . . . . . . Drop . | . . . . . . . . . . . . . . . . . . . . . . . . . Fire 535 | . . 10 17 17 . . . . . . . 1 79 46 13 76 17 53 2 14 48 53 16 73 Melee 45 | . . . . . . . . . 15 29 1 . . . . . . . . . . . . . Ram 1 | . . 1 . . . . . . . . . . . . . . . . . . . . . . Kick 1 | . . . . . . . . . . . . . 1 . . . . . . . . . . . Crush 1 | . . . . . . . . . . . . . . . . . . . . . . 1 . . Escape Stasis 3 | . . . . . . . . . . . . . . . . 3 . . . . . . . . Rewire 178 | . . . . . . . . . . . . . . 19 . . . . . . 159 . . . Trap . | . . . . . . . . . . . . . . . . . . . . . . . . . Miscellaneous . | . . . . . . . . . . . . . . . . . . . . . . . . . Route ------- -11/Junkyard -10/Materials -10/Mines (discovered 2 exits: *Mat x2) -9/Materials (discovered 2 exits: *Min x2) -9/Mines (discovered 3 exits: *Mat x2 / *Exi) -9/Exiles -8/Mines (discovered 2 exits: *Mat x2) -8/Materials (discovered 3 exits: *Fac x3) -7/Factory (discovered 7 exits: Fac x4 / Sto / *Low x2) -7/Lower Caves (discovered 2 exits: [*Low] / [*Zio]) -7/Lower Caves (discovered 2 exits: *Fac / *Dat) -7/Data Miner -6/Proximity Caves -6/Factory (discovered 5 exits: Fac x4 / *Low) -6/Lower Caves -6/Lower Caves -5/Factory (discovered 3 exits: *Fac / *Upp x2) -5/Upper Caves (discovered 2 exits: Upp / *War) -5/Warlord -4/Proximity Caves -4/Factory (discovered 4 exits: *Upp x2 / *Ext x2) -4/Extension (discovered 2 exits: [*Res] / *Cet) -4/Cetus (discovered 2 exits: [*Res] / [*Arc]) -4/Archives (discovered 2 exits: *Hub x2) -4/Hub_04(d) History --------- Turn | Location | Event 4 | -11/Junkyard | Discovered new exit (range 13) 10 | -11/Junkyard | Entered Materials 13 | -10/Materials | Discovered new exit (range 15) 20 | -10/Materials | Entered Mines 62 | -10/Mines | YI-UF0 nonchalantly dropped a Grenade Launcher on the ground 62 | -10/Mines | Took control of YI-UF0 (ally) 284 | -10/Mines | Discovered new exit (range 13) 376 | -10/Mines | Learned location of Storage (-7) 432 | -10/Mines | Discovered new exit (range 5) 549 | -10/Mines | Entered Materials 605 | -9/Materials | Discovered new exit (range 6) 744 | -9/Materials | Discovered new exit (range 12) 857 | -9/Materials | Entered Mines 857 | -9/Mines | Discovered new exit (range 12) 874 | -9/Mines | Discovered new exit (range 7) 901 | -9/Mines | A weapon hastily lodged in a ceiling crevice suddenly fell to the ground 963 | -9/Mines | Assembled infested the area 968 | -9/Mines | Assisted by a Guerilla fighting off Assembled 1069 | -9/Mines | Deemed a non-threat by the Exiles lab entrance 1069 | -9/Mines | Discovered new exit (range 5) 1074 | -9/Mines | Entered Exiles 1102 | -9/Exiles | Met 8R-AWN 1124 | -9/Exiles | Met EX-HEX 1157 | -9/Exiles | Met EX-BIN 1172 | -9/Exiles | Aligned with FarCom system 1173 | -9/Exiles | Given EX-Vault access code 1200 | -9/Exiles | Opened EX-Vault 1228 | -9/Exiles | Warned to stay clear of 0b10 Research branches 1262 | -9/Exiles | Met EX-DEC 1275 | -9/Exiles | Took control of EX-DEC (ally) 1301 | -9/Exiles | Discovered new exit (range 10) 1308 | -9/Exiles | Left Exiles lab with Deploy-a-Sentry 1308 | -9/Exiles | Entered Mines 1435 | -8/Mines | Discovered new exit (range 5) 1518 | -8/Mines | Discovered new exit (range 7) 1721 | -8/Mines | Entered Materials 1749 | -8/Materials | Central database locked down 1754 | -8/Materials | Identified exit to Factory 1795 | -8/Materials | Garrison activated, responded to threat 2026 | -8/Materials | Entered Factory 2103 | -7/Factory | Identified exit to Storage 2103 | -7/Factory | Identified exit to Lower Caves 2147 | -7/Factory | Identified exit to Factory 2204 | -7/Factory | Identified exit to DSF 2228 | -7/Factory | Garrison activated, responded to threat 2630 | -7/Factory | Entered Lower Caves 2746 | -7/Lower Caves | Attracted the attention of an 0b10 checkpoint 3010 | -7/Lower Caves | Learned location of Zion (-6) 3047 | -7/Lower Caves | Learned Factory security intel 3119 | -7/Lower Caves | A Derelict revealed a hidden shortcut to a safe place 3241 | -7/Lower Caves | Encountered a Warlord checkpoint 3254 | -7/Lower Caves | Discovered new exit (range 11) 3281 | -7/Lower Caves | Entered another Lower Caves area 3325 | -7/Lower Caves | Discovered exit to Factory (range 6) 3343 | -7/Lower Caves | Learned Factory stockpile data 3489 | -7/Lower Caves | Attracted the attention of an 0b10 checkpoint 3835 | -7/Lower Caves | Discovered new exit (range 13) 3850 | -7/Lower Caves | Entered Data Miner 3850 | -7/Data Miner | Discovered new exit (range 6) 3869 | -7/Data Miner | Met Data Miner 3886 | -7/Data Miner | Learned location of Section 7 (-2) 3886 | -7/Data Miner | Acquired the access code to Warlord's prototype stash 3902 | -7/Data Miner | Received God Mode back door access code from Data Miner 3909 | -7/Data Miner | Interfaced with the Data Conduit 3940 | -7/Data Miner | Entered Proximity Caves 4229 | -6/Proximity Caves | Discovered exit to Factory (range 7) 4244 | -6/Proximity Caves | Entered Factory 4247 | -6/Factory | Loaded intel: 229 machine locations 4574 | -6/Factory | Discovered new exit (range 5) 4629 | -6/Factory | Identified exit to Factory 5499 | -6/Factory | Lost 3 parts (1p1n1w) 6202 | -6/Factory | Intercept squad dispatched 6236 | -6/Factory | Spotted Tracker 6258 | -6/Factory | Destroyed Tracker 6313 | -6/Factory | Spotted Combat Programmer 6321 | -6/Factory | Took control of Combat Programmer 6333 | -6/Factory | Entered Lower Caves 6368 | -6/Lower Caves | Learned Factory interactive machine intel 6399 | -6/Lower Caves | Attracted the attention of an 0b10 outpost 6461 | -6/Lower Caves | Destroyed 8 combat bots 6668 | -6/Lower Caves | Spotted Combat Programmer 6687 | -6/Lower Caves | Identified exit to Lower Caves 6765 | -6/Lower Caves | Attracted the attention of an 0b10 checkpoint 6766 | -6/Lower Caves | Destroyed Combat Programmer 6840 | -6/Lower Caves | Learned 4 Factory zone layouts 6996 | -6/Lower Caves | Entered another Lower Caves area 7108 | -6/Lower Caves | Discovered exit to Factory (range 14) 7124 | -6/Lower Caves | Entered Factory 7126 | -5/Factory | Loaded intel: 272 machine locations 7127 | -5/Factory | Loaded intel: 52 interactive machine locations 7721 | -5/Factory | Discovered new exit (range 14) 7986 | -5/Factory | Allied Derelicts emerged from ambush trap array 7991 | -5/Factory | Identified exit to Upper Caves 8463 | -5/Factory | Intercept squad dispatched 8497 | -5/Factory | Spotted Tracker 8500 | -5/Factory | Took control of Tracker 8506 | -5/Factory | Entered Upper Caves 8528 | -5/Upper Caves | Encountered a Warlord checkpoint 8586 | -5/Upper Caves | Identified exit to Upper Caves 8590 | -5/Upper Caves | A Derelict revealed a hidden shortcut to "reach the base" 8591 | -5/Upper Caves | Entered Warlord 8636 | -5/Warlord | Received a Watcher feed algorithm from an ecstatic Tinkerer 8641 | -5/Warlord | Met Warlord 8660 | -5/Warlord | Opened Warlord's prototype stash 8666 | -5/Warlord | Warlord's base attacked by MAIN.C 8931 | -5/Warlord | Warlord forces counterattacked 8966 | -5/Warlord | Spotted Executioner 8966 | -5/Warlord | Spotted Executioner 9021 | -5/Warlord | Destroyed Executioner 9030 | -5/Warlord | Discovered new exit (range 12) 9032 | -5/Warlord | Entered Proximity Caves 9056 | -4/Proximity Caves | Spotted B-86 Titan 9061 | -4/Proximity Caves | Learned location of 1 exit from Research 9081 | -4/Proximity Caves | Discovered new exit (range 5) 9081 | -4/Proximity Caves | Entered Factory 9082 | -4/Factory | Loaded intel: 253 machine locations 9136 | -4/Factory | Discovered new exit (range 12) 9141 | -4/Factory | Identified exit to Upper Caves 9141 | -4/Factory | Identified exit to Extension 9167 | -4/Factory | Spotted Tracker 9171 | -4/Factory | Destroyed Tracker 9239 | -4/Factory | Entered Extension 9240 | -4/Extension | Loaded intel: 32 machine locations 9522 | -4/Extension | Rescued a captive Derelict 9523 | -4/Extension | Rescued a captive Derelict 9568 | -4/Extension | Spotted B-86 Titan 9576 | -4/Extension | Rescued a captive Derelict 9580 | -4/Extension | Rescued a captive Derelict 10084 | -4/Extension | Rescued a captive Derelict 10273 | -4/Extension | Rescued a captive Derelict 10273 | -4/Extension | Rescued a captive Derelict 10332 | -4/Extension | Discovered new exit (range 10) 10334 | -4/Extension | Discovered new exit (range 6) 10562 | -4/Extension | Entered Cetus 10562 | -4/Cetus | Accompanied by 10 allies 10563 | -4/Cetus | Loaded intel: 24 machine locations 10581 | -4/Cetus | Spotted Cetus Guard 10581 | -4/Cetus | Spotted Cetus Guard 10591 | -4/Cetus | Spotted Cetus Guard 10606 | -4/Cetus | Allies destroyed Cetus Guard 10610 | -4/Cetus | Allies destroyed Cetus Guard 10619 | -4/Cetus | Spotted Cetus Guard 10624 | -4/Cetus | Destroyed Cetus Guard 10631 | -4/Cetus | Destroyed Cetus Guard 10723 | -4/Cetus | Discovered new exit (range 19) 10755 | -4/Cetus | Spotted Cetus Guard 10755 | -4/Cetus | Spotted Cetus Guard 10766 | -4/Cetus | Spotted Cetus Guard 10768 | -4/Cetus | Spotted Cetus Guard 10774 | -4/Cetus | Discovered new exit (range 20) 10783 | -4/Cetus | Took control of Cetus Guard 10783 | -4/Cetus | Destroyed Cetus Guard 10793 | -4/Cetus | Destroyed Cetus Guard 10810 | -4/Cetus | Destroyed Cetus Guard 10813 | -4/Cetus | Lost 4 parts (1n2u1w) 10829 | -4/Cetus | Met Revision 17 10846 | -4/Cetus | Destroyed 7 combat bots 10941 | -4/Cetus | Entered Archives 10942 | -4/Archives | Loaded intel: 8 machine locations 11027 | -4/Archives | Spotted Cetus Guard 11037 | -4/Archives | Discovered new exit (range 13) 11048 | -4/Archives | Destroyed Cetus Guard 11058 | -4/Archives | Lost 4 parts (1p2u1w) 11067 | -4/Archives | Discovered new exit (range 15) 11091 | -4/Archives | Entered Hub_04(d) 11092 | -4/Hub_04(d) | Loaded intel: 106 machine locations 11620 | -4/Hub_04(d) | Spotted B-86 Titan 11636 | -4/Hub_04(d) | Core integrity fell below 50% 11636 | -4/Hub_04(d) | Took control of B-86 Titan 11946 | -4/Hub_04(d) | Network Hub disabled 12012 | -4/Hub_04(d) | Core integrity fell below 20% 12030 | -4/Hub_04(d) | Core destroyed Last Messages --------------- 12014_ Adv. Cooling System broken. 12014_ Overheating: Short circuit. 12015_ Penetrated by Slug. 12016_ Hrd. Heavy Armor Plating destroyed. 12018_ Penetrated by Slug. 12019_ Slug penetrates H-71 Marshal. 12019_ H-71 Marshal destroyed. 12019_ Slug penetrates Wall. 12019_ Penetrated by Slug. 12023_ Overheating: Matter decay (-10). 12023_ Slug penetrates Wall. 12024_ Penetrated by Slug. 12025_ Wall collapses. 12025_ Slug penetrates Y-64 Sentinel. 12027_ Penetrated by Slug. 12028_ Y-64 Sentinel suffers critical hit (Destroy). 12028_ Penetrated by Slug. 12028_ Y-64 Sentinel destroyed. 12028_ Penetrated by Slug. 12030_ Overheating: Core damaged (-126). Map ----- +----------------------------------------------------+ | ????????????????????????????#" " # "#??# #?# " | | ???????????????????#########"""""## "##?# #?# " | | ???????????????????# "## " #?# #?# " | | ???????????????????# #?# " #?# #?# | | ???????????????????# """ ###" ##?# #?# | | ???????????????????# "" !#[* #??# #?#/ | | ???????????????????# "" % #### ##### | | ???????############# " / | | ??????? # %/== # | | ?????? # !#^^! # | | ?????? """"""""""""" #=% + | | ?????? " "" # ####" #### | | ?????? " " # " !#??#"T#??? | | ?????? " " # #??####??? | | ?????? " """;;;;""###########????????? | | ?????? " " ;" #??????????????????? | | ?????? " " ;""######?????????????? | | ???????" """; ; "#?????????????? | | ???????" " # # """##?????????????? | | ???????" " # / T"#????"?"?"?????? | | ???????? ; # # """#????"?"?"?????? | | ???????? ; # # #????"?"?"?????? | | ???????";;;;;;;;;;;;## # #??????????????? | | ??????? ; %#% #?######??????????????? | | ??????? ; %/!%##;;###???????????????? | | ??????? ; =[%BB[%= % % ????????? | | ??????? ;! %*#BB *!% % w???????? | | ???????#; =?###h%;####### ????????? | | ????????; ????? h#??????????????????? | | ????????; ??????"" #??????????????????? | | ????????? "?????"" #??????????????????? | | ????????? ???????"T?#??????????????????? | | ?????????? """?????""?+????????????"?"?"?? | | ??????????? ?????????""??????????????"?"?"?? | | ??????????? ????????????????????+????"?"?"?? | | ?????????????"????????????????????????????????? | | ???????????????????????????+????????????"?"?"?" | | ??????"""T"""???????????????????????????"?"?"?" | | ??????"""?"""???????????????????????????"?"?"?" | | ??????????????????????????????????????????????? | | ??????????????????????????????????????????????? | | ??????????????????????????????????????????????? | | ???????????????????""""???????????????????????? | | ???????????????????""""???????????????????????? | | ???????????????????""""???????????????????????? | | ???????????????????""""????????????????""""???? | | ???????????????????????????????????????""""???? | | ???????????????????????????????????????""""???? | | ???????????????????????????????????????""""???? | | ??????????????????????????????????????????????? | +----------------------------------------------------+ Best States ------------- Heat Dissipation 92 Coolant Potential 80 Energy Generation 66 Energy Capacity 300 Matter Stores 2993 Matter Capacity 3000 Sight Range 22 Robot Scan Range 18 Terrain Scan Density 10 Jamming Range 14 Additional Mass Support 20 EM Shielding 4 Armor Coverage 1200 Resistance: KI 25 Resistance: EX 90 Resistance: EM 90 Resistance: I 50 Resistance: S 50 Resistance: P 50 Core Shielding 20 Weapon Shielding 90 Weapon Cycling 20 Melee Speed Boost 20 Phase Shifting 20 Evasion (%) 87 Targeting Accuracy 12 Melee Accuracy 6 Launcher Accuracy 40 Target Analysis 10 Core Analysis 8 Armor Integrity Analysis 40 Recoil Reduction 4 Kinecelleration 30 Offensive Hacking 70 Defensive Hacking 56 Item Schematics ----------------- Combat Drone Bay | -7/Data Miner | Free Lgt. Regenerative Plating | -7/Data Miner | Free Biomechanical Wings | -7/Data Miner | Free Exp. Targeting Computer | -7/Data Miner | Free Imp. Lightning Gun | -7/Data Miner | Free Nuclear Pulse Array | -7/Data Miner | Free Imp. Thermal Shield | -7/Data Miner | Free Mass Driver | -7/Data Miner | Free Hvy. Disruptor Cannon | -7/Data Miner | Free Robot Schematics ------------------ W-25 Informer | -7/Data Miner | Free L-41 Fighter | -7/Data Miner | Free G-47 Trooper | -7/Data Miner | Free M-22 Extractor | -7/Data Miner | Free A-15 Conveyor | -7/Data Miner | Free Fabricated ------------ Nothing Alien Tech Used ----------------- None Achievements -------------- None Challenges ------------ None Polymind | -11 -10 -10 -9 -9 -9 -8 -8 -7 -7 -7 -7 -6 -6 -6 -6 -5 -5 -5 -4 -4 -4 -4 -4 -4 ---------- Run | Jun Mat Min Mat Min Exi Min Mat Fac Low Low Dat Pro Fac Low Low Fac Upp War Pro Fac Ext Cet Arc Hub Hosts 16 | . . 2 . 2 1 . . . 1 . . 1 2 1 . 1 . . . 1 . 2 1 1 Combat Hostiles 13 | . . 1 . 1 . . . . 1 . . 1 2 1 . 1 . . . 1 . 2 1 1 Allies 3 | . . 1 . 1 1 . . . . . . . . . . . . . . . . . . . Unique Host Classes 9 | . . 2 . . 1 . . . 1 . . 1 2 . . . . . . 1 . . . 1 Average Host Suspicion 83 | . . 99 87 92 . 99 83 83 82 54 3 38 97 69 97 90 1 98 2 96 88 94 89 78 Unsuspicious Activity 1140 | . . 13 . 37 16 . . . . 90 . 25 257 115 . 160 170 . 20 76 . . . 161 Returns to Shadow 2 | . . . . . . . . . . 1 . . . 1 . . . . . . . . . . Fuzzy Dispatches 1 | . . . . . . . . . . . . . . . . . . . . . . . . 1 Protomatter Created 3664 | . . 3 42 42 . 76 39 71 18 73 . 45 403 388 39 103 55 998 . 33 537 460 . 239 Used 1583 | . . 32 . 20 33 . . . 46 . . 51 411 51 . 320 . . . 144 . 128 97 250 Decayed 1197 | . . . . . . . . . . 46 . . 45 . . 71 55 152 . 33 393 330 . 72 Highest Spend 360 | . . 26 . 14 33 . . . 46 . . 51 360 51 . 320 . . . 144 . 114 97 250 Top 5 Hosts by Kills: EX-DEC (-9/Exiles: 35) H-66 Slayer (-6/Proximity Caves: 21) Tracker (-5/Factory: 16) H-71 Marshal (-4/Factory: 15) YI-UF0 (-10/Mines: 12) Game ------ Seed ImpulseHellfirePick Manual? 0 Play Time 02:41:50 Cumulative 476.0 hours Start 2023.04.10 @ 06:50:50 End 2023.04.12 @ 14:27:41 Sessions 7 Manual Loads 0 Difficulty Rogue Special Mode Winter2022/Polymind Game No. 88 Rogue 81 Adventurer 1 Explorer 6 Win Type - Total 37 Types 11/3/12/1/1/1/6/1/1 Lore% 92 Gallery% 92 Achievement% 83 Wizard Run 0 Options --------- ASCII 0 Keyboard 0 Movement Numpad Keybinds 0 Fullscreen 1 Font 18/SmallcapsGlow Map View 76x50 Tactical HUD 1 Map Filters NONE Filters NONE Steam 1 RUN: 43149ee2-9d41-4580-82f6-55a27a340ed3